bitfinex/quotes_BTCUSD_20241023
["timestamp","ask_amount","ask_price","bid_price","bid_amount"]
[1729698177710,0.151664,65935.0,65934.0,0.00241367]
[1729698178233,0.42104805,65935.0,65934.0,0.00241367]
[1729698178672,0.43104805,65935.0,65934.0,0.00241367]
[1729698179750,0.42104805,65935.0,65934.0,0.00241367]
[1729698179965,0.42106808,65935.0,65934.0,0.00241367]
[1729698180399,0.43106808,65935.0,65934.0,0.00241367]
[1729698182707,0.43108525,65935.0,65934.0,0.00241367]
[1729698183467,0.42608525,65935.0,65934.0,0.00241367]
[1729698183713,0.43108525,65935.0,65934.0,0.00241367]
[1729698185712,0.151664,65935.0,65934.0,0.00241367]
[1729698185992,0.001646,65938.0,65934.0,0.00241367]
[1729698186982,0.01394838,65937.0,65936.0,0.0771]
[1729698187463,0.01394838,65937.0,65936.0,0.25396278]
[1729698187713,0.01394838,65937.0,65936.0,0.34002383]
[1729698187981,0.04437082,65958.0,65936.0,0.894455]
[1729698188253,0.08874165,65962.0,65936.0,0.894455]
[1729698188254,0.22706458,65946.0,65942.0,0.0812]
[1729698188507,0.22706458,65946.0,65945.0,0.17686278]
[1729698188733,0.22706458,65953.0,65945.0,0.17686278]
[1729698188989,0.22706458,65953.0,65944.0,0.17686278]
[1729698189758,0.22706458,65953.0,65942.0,0.0812]
[1729698189759,0.37756839,65953.0,65942.0,0.0812]
[1729698190007,0.30325,65952.0,65942.0,0.30826458]
[1729698190247,0.15050381,65953.0,65944.0,0.17686278]
[1729698190248,0.303256,65951.0,65944.0,0.17686278]
[1729698190494,0.151638,65947.0,65942.0,0.0812]
[1729698190734,0.151632,65949.0,65942.0,0.0812]
[1729698190992,0.151645,65944.0,65942.0,0.0812]
[1729698191245,0.151641,65945.0,65942.0,0.0812]
[1729698191497,0.15164,65946.0,65942.0,0.0812]
[1729698191778,0.22706458,65958.0,65942.0,0.0812]
[1729698192018,0.22706458,65951.0,65942.0,0.0812]
[1729698192290,0.001646,65950.0,65942.0,0.0812]
[1729698192515,0.151637,65947.0,65942.0,0.0812]
[1729698192766,0.303264,65949.0,65942.0,0.0812]
[1729698192998,0.454898,65949.0,65942.0,0.0812]
[1729698193231,0.151634,65948.0,65942.0,0.0812]
[1729698193714,0.151635,65948.0,65942.0,0.0812]
[1729698193959,0.151632,65949.0,65942.0,0.0812]
[1729698194221,0.001646,65950.0,65942.0,0.0812]
[1729698194466,0.001646,65950.0,65947.0,0.17686278]
[1729698194719,0.22706458,65949.0,65948.0,0.22733223]
[1729698194978,0.001646,65950.0,65948.0,0.2243]
[1729698195245,0.37869658,65949.0,65948.0,0.2243]
[1729698195514,0.151632,65949.0,65948.0,0.0823]
[1729698196242,0.304906,65950.0,65948.0,0.0823]
[1729698196243,0.001646,65950.0,65948.0,0.0823]
[1729698196501,0.001646,65950.0,65948.0,0.25916278]
[1729698196748,0.001646,65950.0,65948.0,0.41079678]
[1729698196972,0.001646,65950.0,65948.0,0.25916278]
[1729698199452,0.001646,65950.0,65948.0,0.0823]
[1729698199683,0.151632,65949.0,65948.0,0.0823]
[1729698199925,0.001646,65950.0,65948.0,0.0823]
[1729698200159,0.151632,65949.0,65948.0,0.0823]
[1729698200404,0.001646,65950.0,65948.0,0.0823]
[1729698201180,0.001646,65950.0,65949.0,0.40764519]
[1729698201444,0.001646,65950.0,65949.0,0.48945209]
[1729698201694,0.001646,65950.0,65949.0,0.56895209]
[1729698201954,0.22706458,65964.0,65963.0,0.32326278]
[1729698202183,0.22706458,65964.0,65963.0,0.60217534]
[1729698202426,0.001646,65970.0,65965.0,0.303191]
[1729698202671,0.001646,65970.0,65969.0,0.17686278]
[1729698202920,0.001646,65970.0,65969.0,0.32844878]
[1729698203438,0.001646,65970.0,65969.0,0.43748174]
[1729698204132,0.001646,65970.0,65969.0,0.81578555]
[1729698205600,0.001646,65970.0,65969.0,0.92578555]
[1729698206789,0.22706458,65999.0,65994.0,0.2151]
[1729698207266,0.22706458,65999.0,65995.0,0.17686278]
[1729698207510,0.153226,66003.0,65994.0,0.2151]
[1729698207997,0.001718,66003.0,65994.0,0.2151]
[1729698208234,0.001718,66003.0,65994.0,0.366627]
[1729698208474,0.153227,66003.0,65994.0,0.2151]
[1729698208707,0.001718,66003.0,65994.0,0.2151]
[1729698209419,0.001718,66003.0,65995.0,0.09277514]
[1729698209717,0.153227,66003.0,65995.0,0.09277514]
[1729698209974,0.001718,66003.0,65994.0,0.2151]
[1729698210470,0.303025,66001.0,65994.0,0.2151]
[1729698210707,0.153227,66003.0,65995.0,0.22706458]
[1729698210998,0.151511,66002.0,65995.0,0.04421646]
[1729698211203,0.151511,66002.0,65994.0,0.2151]
[1729698211441,0.151511,66002.0,65986.0,0.53015758]
[1729698211442,0.151526,65995.0,65987.0,0.0802]
[1729698211695,0.151526,65995.0,65987.0,0.22706458]
[1729698211696,0.15050381,65994.0,65987.0,0.22706458]
[1729698211924,0.319736,66003.0,65987.0,0.22706458]
[1729698211925,0.006718,66003.0,65987.0,0.22706458]
[1729698212170,0.151533,65992.0,65987.0,0.22706458]
[1729698212399,0.303057,65994.0,65987.0,0.22706458]
[1729698212815,0.303057,65994.0,65982.0,0.25805639]
[1729698212816,0.151531,65993.0,65983.0,0.22706458]
[1729698213709,0.454579,65995.0,65983.0,0.22706458]
[1729698213924,0.30303,66000.0,65983.0,0.22706458]
[1729698214139,0.001718,66003.0,65991.0,0.48512097]
[1729698214351,0.001718,66003.0,65992.0,0.151533]
[1729698214796,0.001718,66003.0,65991.0,0.25805639]
[1729698215003,0.001718,66003.0,65992.0,0.22706458]
[1729698215257,0.15151,66002.0,65992.0,0.22706458]
[1729698215488,0.001718,66003.0,65992.0,0.22706458]
[1729698215489,0.304738,66003.0,65992.0,0.22706458]
[1729698215700,0.001718,66003.0,65993.0,0.02270646]
[1729698215922,0.001718,66003.0,65996.0,0.0796]
[1729698218356,0.001718,66003.0,65996.0,0.08263015]
[1729698218865,0.001718,66003.0,66002.0,0.15151]
[1729698219083,0.001718,66003.0,66002.0,0.1696908]
[1729698219297,0.001718,66003.0,66002.0,0.171661]
[1729698220193,0.001718,66003.0,66002.0,0.387261]
[1729698220633,0.001718,66003.0,66002.0,0.2156]
[1729698220849,0.001718,66003.0,65995.0,0.151525]
[1729698221059,0.001718,66003.0,65997.0,0.22706458]
[1729698221305,0.001718,66003.0,65996.0,4e-05]
[1729698221538,0.001718,66003.0,65997.0,0.151521]
[1729698221758,0.001718,66003.0,65997.0,0.10065857]
[1729698221971,0.001718,66003.0,65996.0,0.25809639]
[1729698222184,0.001718,66003.0,65997.0,0.00302997]
[1729698222403,0.001718,66003.0,65996.0,0.25809639]
[1729698222862,0.001718,66003.0,65997.0,0.00302997]
[1729698223073,0.001718,66003.0,65996.0,0.25809639]
[1729698223280,0.001718,66003.0,65996.0,0.40962039]
[1729698223494,0.001718,66003.0,65997.0,0.04787364]
[1729698224175,0.001718,66003.0,65997.0,1.54787364]
[1729698224367,0.001718,66003.0,65998.0,0.00302997]
[1729698224584,0.001718,66003.0,66001.0,0.25805639]
[1729698225773,0.001718,66003.0,65997.0,1.80593003]
[1729698225983,0.001718,66003.0,65999.0,0.151516]
[1729698226208,0.001718,66003.0,65997.0,2.10896903]
[1729698226209,0.001718,66003.0,66000.0,0.00302998]
[1729698226598,0.001718,66003.0,65997.0,1.75805639]
[1729698226750,0.001718,66003.0,65997.0,1.90957739]
[1729698227158,0.001718,66003.0,65997.0,2.06109939]
[1729698227358,0.001718,66003.0,65998.0,0.15050381]
[1729698227607,0.001718,66003.0,65998.0,0.30202181]
[1729698227812,0.001718,66003.0,66001.0,0.25805639]
[1729698228055,0.001718,66003.0,66002.0,0.00302987]
[1729698228291,0.001718,66003.0,66001.0,0.25805639]
[1729698228489,0.001718,66003.0,66002.0,0.20873781]
[1729698230552,0.001718,66003.0,66002.0,0.38511153]
[1729698231010,0.001718,66003.0,65997.0,1.803041]
[1729698231011,0.151519,65998.0,65997.0,1.5]
[1729698231469,0.47839653,65998.0,65997.0,1.5]
[1729698231699,0.30202281,65998.0,65997.0,1.5]
[1729698232156,0.31597355,65998.0,65997.0,1.5]
[1729698232371,0.16546974,65998.0,65997.0,1.5]
[1729698233071,0.01395074,65998.0,65997.0,1.5]
[1729698233285,0.16546974,65998.0,65997.0,1.5]
[1729698235287,0.01395074,65998.0,65997.0,1.5]
[1729698235469,0.16546974,65998.0,65997.0,1.5]
[1729698238291,0.16549816,65998.0,65997.0,1.5]
[1729698240487,0.01397916,65998.0,65997.0,1.5]
[1729698240717,0.01397916,65998.0,65997.0,1.64307857]
[1729698240945,0.16549816,65998.0,65997.0,1.5]
[1729698241582,0.16549816,65998.0,65997.0,1.50004]
[1729698242506,0.01397916,65998.0,65997.0,1.50004]
[1729698242938,0.01397916,65998.0,65997.0,1.651562]
[1729698243150,0.01397916,65998.0,65997.0,1.793262]
[1729698243376,0.01397916,65998.0,65997.0,1.79224381]
[1729698244444,0.01397916,65998.0,65997.0,1.64174]
[1729698244670,0.01397916,65998.0,65997.0,1.50004]
[1729698244908,0.01398328,65998.0,65997.0,1.50004]
[1729698245855,0.01398328,65998.0,65997.0,1.651562]
[1729698246089,0.01398328,65998.0,65997.0,1.90965315]
[1729698246307,0.01398328,65998.0,65997.0,2.06015696]
[1729698246977,0.01398328,65998.0,65997.0,2.29656077]
[1729698247237,0.01398328,65998.0,65997.0,2.43596077]
[1729698247969,0.01398328,65998.0,65997.0,2.45896077]
[1729698248291,0.01398328,66002.0,66001.0,0.156512]
[1729698248515,0.001718,66003.0,66002.0,0.56510496]
[1729698248731,0.01570253,66003.0,66002.0,0.71560877]
[1729698249937,0.01570253,66003.0,66002.0,0.45751762]
[1729698250567,0.01570253,66003.0,66002.0,0.15050381]
[1729698252022,0.001718,66003.0,66002.0,0.15050381]
[1729698252490,0.001718,66003.0,66002.0,0.30504365]
[1729698252694,0.001718,66003.0,66002.0,0.56510496]
[1729698252695,0.01569671,66003.0,66002.0,0.56510496]
[1729698253114,0.01569671,66003.0,66002.0,0.71560877]
[1729698253537,0.001718,66003.0,66002.0,0.71560877]
[1729698253974,0.001718,66003.0,66002.0,0.56409877]
[1729698254214,0.001718,66003.0,66002.0,0.45751762]
[1729698255349,0.001718,66003.0,66002.0,0.15050381]
[1729698256297,0.17811499,66003.0,65997.0,1.50004]
[1729698256538,0.37262281,65998.0,65997.0,1.50004]
[1729698256765,0.64344021,65998.0,65997.0,1.50004]
[1729698256971,0.75478631,65998.0,65997.0,1.50004]
[1729698257438,0.88182707,65998.0,65997.0,1.50004]
[1729698257860,0.79466587,65998.0,65997.0,1.50004]
[1729698258068,0.79666587,65998.0,65997.0,1.50004]
[1729698258496,0.75021175,65998.0,65997.0,1.50004]
[1729698259164,0.56181476,65998.0,65997.0,1.50004]
[1729698259842,0.54784322,65998.0,65997.0,1.50004]
[1729698260071,0.55484322,65998.0,65997.0,1.50004]
[1729698260293,0.55984322,65998.0,65997.0,1.50004]
[1729698260759,0.55784322,65998.0,65997.0,1.50004]
[1729698261235,0.58084322,65998.0,65997.0,1.34852]
[1729698261651,0.58052425,65998.0,65997.0,1.34852]
[1729698261862,0.58052425,65998.0,65997.0,0.67657359]
[1729698261863,0.6944675,65998.0,65997.0,0.67657359]
[1729698262074,0.7398675,65998.0,65997.0,0.53067359]
[1729698262514,0.85137022,65998.0,65997.0,0.53067359]
[1729698263430,0.7398675,65998.0,65997.0,0.53067359]
[1729698264541,0.73984765,65998.0,65997.0,0.53067359]
[1729698264989,0.73984765,65998.0,65997.0,0.53269759]
[1729698265477,0.82896763,65998.0,65997.0,0.47208959]
[1729698265945,0.73984765,65998.0,65997.0,0.35087359]
[1729698266168,0.73984765,65998.0,65992.0,4e-05]
[1729698266169,0.168531,65993.0,65992.0,4e-05]
[1729698266381,0.69705664,65993.0,65992.0,4e-05]
[1729698266593,0.78611909,65993.0,65992.0,4e-05]
[1729698266804,0.69705664,65993.0,65992.0,4e-05]
[1729698267644,0.69705664,65993.0,65960.0,0.20011451]
[1729698267645,0.69705664,65993.0,65970.0,0.22710458]
[1729698267646,0.161563,65979.0,65970.0,0.22710458]
[1729698267849,0.38246658,65979.0,65977.0,0.22706458]
[1729698268056,0.35688339,65979.0,65977.0,0.22706458]
[1729698268268,0.35688339,65979.0,65970.0,0.22710458]
[1729698268894,0.35888339,65979.0,65970.0,0.22710458]
[1729698269109,0.5093872,65979.0,65970.0,0.22710458]
[1729698269557,0.33299021,65979.0,65970.0,0.22710458]
[1729698269806,0.33099021,65979.0,65970.0,0.22710458]
[1729698270498,0.33685338,65979.0,65970.0,0.22710458]
[1729698270930,0.33685338,65979.0,65976.0,0.17639699]
[1729698270931,0.32099021,65979.0,65976.0,0.17639699]
[1729698271384,0.31594749,65979.0,65976.0,0.17639699]
[1729698272510,0.16438449,65979.0,65978.0,0.137322]
[1729698272730,0.30206681,65979.0,65978.0,0.137322]
[1729698272968,0.31594749,65979.0,65978.0,0.137322]
[1729698273680,0.16544368,65979.0,65978.0,0.137322]
[1729698273907,0.151563,65979.0,65978.0,0.218122]
[1729698274383,0.01388068,65980.0,65978.0,0.218122]
[1729698274651,0.303115,65982.0,65978.0,0.218122]
[1729698274652,0.16543968,65981.0,65978.0,0.218122]
[1729698274882,0.01388068,65981.0,65978.0,0.218122]
[1729698275114,0.1,65982.0,65978.0,0.218122]
[1729698275115,0.11388068,65982.0,65978.0,0.218122]
[1729698275374,0.01388068,65982.0,65980.0,0.17639699]
[1729698275579,0.151553,65984.0,65980.0,0.17639699]
[1729698275797,0.01388068,65985.0,65981.0,0.22706458]
[1729698276013,0.01388068,65985.0,65980.0,0.35279398]
[1729698276014,0.01388068,65993.0,65984.0,0.17639699]
[1729698276238,0.09062773,66003.0,65992.0,0.17639699]
[1729698276239,0.01388068,65996.0,65992.0,0.17639699]
[1729698276453,0.22706458,66001.0,65985.0,0.22953064]
[1729698276454,0.01388068,66000.0,65995.0,0.17639699]
[1729698276876,0.303039,65998.0,65995.0,0.17639699]
[1729698277081,0.151523,65997.0,65995.0,0.17639699]
[1729698277296,0.303039,65998.0,65995.0,0.17639699]
[1729698277509,0.151522,65997.0,65995.0,0.17639699]
[1729698277721,0.151524,65996.0,65995.0,0.17639699]
[1729698277971,0.30303,66000.0,65995.0,0.17639699]
[1729698278225,0.15152,65998.0,65995.0,0.17639699]
[1729698278463,0.303038,65999.0,65995.0,0.17639699]
[1729698278709,0.151523,65997.0,65995.0,0.17639699]
[1729698278956,0.30303,66000.0,65995.0,0.17639699]
[1729698278957,0.303032,66000.0,65995.0,0.17639699]
[1729698279193,0.303025,66001.0,65999.0,0.17639699]
[1729698279438,0.15050381,66002.0,65999.0,0.17639699]
[1729698279676,0.151515,66000.0,65999.0,0.17639699]
[1729698279913,0.151524,65996.0,65995.0,4e-05]
[1729698281462,0.30202781,65996.0,65995.0,4e-05]
[1729698281687,0.31593443,65996.0,65995.0,4e-05]
[1729698282191,0.01390662,65996.0,65995.0,0.57303398]
[1729698282435,0.001718,66003.0,65995.0,0.47694993]
[1729698282699,0.151513,66001.0,65999.0,0.17639699]
[1729698282946,0.01391644,66001.0,65999.0,0.17639699]
[1729698283199,0.151511,66002.0,65999.0,0.17639699]
[1729698283441,0.001718,66003.0,65999.0,0.17639699]
[1729698283908,0.151511,66002.0,65999.0,0.17639699]
[1729698284394,0.153226,66003.0,65999.0,0.17639699]
[1729698284869,0.001718,66003.0,66000.0,0.17639699]
[1729698285112,0.001718,66003.0,66000.0,0.24885279]
[1729698285359,0.001718,66003.0,66000.0,0.17639699]
[1729698286396,0.001718,66003.0,65999.0,0.17639699]
[1729698286614,0.001718,66003.0,66000.0,0.17639699]
[1729698287373,0.15050381,66002.0,65999.0,0.17639699]
[1729698287623,0.151524,65996.0,65995.0,0.31993699]
[1729698287872,0.30303,66000.0,65997.0,0.22706458]
[1729698288102,0.01609838,66001.0,65995.0,0.31993699]
[1729698288103,0.01392278,65999.0,65995.0,0.14354]
[1729698288333,0.151518,65999.0,65995.0,0.14354]
[1729698288788,0.01392278,66000.0,65995.0,0.14354]
[1729698288789,0.01392278,66000.0,65998.0,0.17639699]
[1729698289033,0.01392278,66001.0,65998.0,0.17639699]
[1729698289281,0.001718,66003.0,65998.0,0.17639699]
[1729698289282,0.01564078,66003.0,65998.0,0.17639699]
[1729698289513,0.151511,66002.0,65995.0,0.14354]
[1729698289944,0.151511,66002.0,65998.0,0.17639699]
[1729698290669,0.01564078,66003.0,65998.0,0.17639699]
[1729698291150,0.31865678,66003.0,65998.0,0.17639699]
[1729698291400,0.16543278,66002.0,65998.0,0.17639699]
[1729698291899,0.151513,66001.0,65998.0,0.17639699]
[1729698292132,0.01392278,66002.0,65995.0,0.14354]
[1729698292377,0.15050381,66002.0,65995.0,0.14354]
[1729698292630,0.151524,65996.0,65995.0,0.14354]
[1729698292862,0.16441947,66002.0,65995.0,0.14354]
[1729698293093,0.151521,65998.0,65995.0,0.14354]
[1729698293346,0.01391566,66001.0,65995.0,0.14354]
[1729698293561,0.151518,65999.0,65995.0,0.14354]
[1729698293796,0.151515,66000.0,65995.0,0.14354]
[1729698294013,0.01391566,66001.0,65995.0,0.14354]
[1729698294217,0.151517,66000.0,65995.0,0.14354]
[1729698294466,0.16543066,66000.0,65995.0,0.14354]
[1729698294686,0.151519,65999.0,65995.0,0.14354]
[1729698295281,0.01391566,66001.0,65995.0,0.14354]
[1729698295483,0.151517,65999.0,65995.0,0.14354]
[1729698295716,0.151516,66000.0,65995.0,0.14354]
[1729698295948,0.151517,65999.0,65995.0,0.14354]
[1729698296395,0.151515,66000.0,65995.0,0.14354]
[1729698296606,0.151517,65999.0,65995.0,0.14354]
[1729698296815,0.151515,66000.0,65995.0,0.14354]
[1729698297033,0.16543276,66000.0,65998.0,0.17639699]
[1729698297239,0.01391776,66001.0,65998.0,0.17639699]
[1729698297447,0.001718,66003.0,65998.0,0.17639699]
[1729698297655,0.001718,66003.0,66002.0,0.17639699]
[1729698298086,0.001718,66003.0,65995.0,0.14354]
[1729698298087,0.15222181,66003.0,65995.0,4e-05]
[1729698298330,0.151524,65996.0,65995.0,4e-05]
[1729698298566,0.30202781,65996.0,65995.0,4e-05]
[1729698299006,0.40702781,65996.0,65995.0,4e-05]
[1729698299230,0.46543821,65996.0,65995.0,4e-05]
[1729698299468,0.61660701,65996.0,65995.0,4e-05]
[1729698299706,0.78296765,65996.0,65995.0,4e-05]
[1729698300139,0.85801879,65996.0,65995.0,4e-05]
[1729698300355,0.76904443,65996.0,65995.0,4e-05]
[1729698300568,0.77904443,65996.0,65995.0,4e-05]
[1729698300783,0.97256238,65996.0,65995.0,4e-05]
[1729698300991,0.86134443,65996.0,65995.0,4e-05]
[1729698301205,0.86514302,65996.0,65995.0,4e-05]
[1729698301423,0.86514302,65996.0,65984.0,0.22706458]
[1729698301424,0.5546,65992.0,65991.0,0.22706458]
[1729698301637,0.75299329,65992.0,65991.0,0.22706458]
[1729698301854,0.151549,65985.0,65984.0,0.22542658]
[1729698302086,0.30205281,65985.0,65984.0,0.22542658]
[1729698302291,0.15050381,65985.0,65978.0,0.000862]
[1729698302515,0.151563,65979.0,65978.0,0.000862]
[1729698302732,0.04454715,65990.0,65978.0,0.23247135]
[1729698302944,0.04454715,65990.0,65989.0,0.17639699]
[1729698302945,0.15050381,65990.0,65989.0,0.17639699]
[1729698303162,0.37859658,65993.0,65989.0,0.17639699]
[1729698303384,0.15050381,65992.0,65989.0,0.17639699]
[1729698303624,0.303022,66002.0,65990.0,0.1471]
[1729698303837,0.04626515,66003.0,65993.0,0.17639699]
[1729698303838,0.303038,65999.0,65993.0,0.17639699]
[1729698304049,0.15050381,65998.0,65993.0,0.17639699]
[1729698304479,0.04626515,66003.0,65997.0,0.17639699]
[1729698304480,0.151518,65999.0,65997.0,0.17639699]
[1729698304690,0.303023,66002.0,65997.0,0.17639699]
[1729698304691,0.151513,66001.0,65997.0,0.17639699]
[1729698304921,0.15050381,66001.0,65997.0,0.17639699]
[1729698305152,0.304737,66003.0,65997.0,0.17639699]
[1729698305153,0.001718,66003.0,65997.0,0.17639699]
[1729698305590,0.15050381,66002.0,65990.0,0.1471]
[1729698305811,0.151538,65990.0,65989.0,0.22706458]
[1729698306345,0.151538,65990.0,65982.0,0.1547]
[1729698306346,0.303057,65994.0,65982.0,0.1547]
[1729698306553,0.15050381,65993.0,65988.0,0.40346157]
[1729698306762,0.151536,65991.0,65988.0,0.17639699]
[1729698306980,0.151534,65992.0,65988.0,0.17639699]
[1729698307191,0.151538,65990.0,65988.0,0.17639699]
[1729698307418,0.15050381,65992.0,65988.0,0.17639699]
[1729698307641,0.151536,65991.0,65988.0,0.17639699]
[1729698307860,0.303039,65998.0,65988.0,0.17639699]
[1729698308076,0.07353862,66003.0,65997.0,0.17639699]
[1729698308077,0.303025,66001.0,65997.0,0.17639699]
[1729698308293,0.151515,66000.0,65997.0,0.17639699]
[1729698308515,0.30201581,66002.0,65998.0,0.1574]
[1729698308946,0.30192581,66002.0,65998.0,0.1574]
[1729698309196,0.151511,66002.0,65998.0,0.1574]
[1729698309425,0.151512,66002.0,65998.0,0.1574]
[1729698309644,0.00027057,66003.0,65998.0,0.1574]
[1729698309875,0.15177957,66003.0,65998.0,0.1574]
[1729698310095,0.00027057,66003.0,66001.0,0.17639699]
[1729698310519,0.00027057,66003.0,65998.0,0.1574]
[1729698310731,0.15151,66002.0,65998.0,0.1574]
[1729698310940,0.15177957,66003.0,65998.0,0.1574]
[1729698311171,0.00027057,66003.0,65998.0,0.1574]
[1729698312233,0.15177957,66003.0,65998.0,0.1574]
[1729698312519,0.15177957,66003.0,66002.0,0.17639699]
[1729698312520,0.00027057,66003.0,66002.0,0.17639699]
[1729698312938,0.00027057,66003.0,66002.0,0.25389699]
[1729698313622,0.00027057,66003.0,66002.0,0.46168879]
[1729698313940,0.00027057,66003.0,66002.0,0.61638879]
[1729698314146,0.00027057,66003.0,66002.0,0.4399918]
[1729698316602,0.00027057,66003.0,66002.0,0.43990673]
[1729698317785,0.00027057,66003.0,66002.0,0.60041054]
[1729698317982,0.00027057,66003.0,66002.0,0.60541054]
[1729698318894,0.00027057,66003.0,66002.0,0.60741054]
[1729698319125,0.001646,66005.0,66004.0,0.316505]
[1729698319334,0.001646,66005.0,66004.0,0.81490961]
[1729698319552,0.001718,66016.0,66015.0,0.29948]
[1729698319798,0.001718,66016.0,66015.0,0.90030689]
[1729698319998,0.001718,66016.0,66015.0,0.89727779]
[1729698321073,0.22706458,66027.0,66026.0,0.54485199]
[1729698321283,0.001716,66030.0,66029.0,0.151448]
[1729698321510,0.001716,66036.0,66029.0,0.151448]
[1729698321511,0.001716,66036.0,66035.0,0.151434]
[1729698321714,0.001716,66036.0,66035.0,0.52393781]
[1729698321928,0.001716,66036.0,66035.0,0.368434]
[1729698322553,0.001716,66036.0,66035.0,0.217]
[1729698322764,0.001716,66036.0,66035.0,0.3022722]
[1729698323163,0.001716,66036.0,66035.0,0.22002837]
[1729698323371,0.001716,66036.0,66035.0,0.368434]
[1729698323579,0.001716,66036.0,66035.0,0.363434]
[1729698325674,0.001716,66036.0,66035.0,0.363474]
[1729698327508,0.001716,66036.0,66035.0,0.6953748]
[1729698327721,0.001716,66036.0,66035.0,0.66773169]
[1729698327931,0.001644,66041.0,66040.0,0.380023]
[1729698328137,0.001644,66041.0,66040.0,0.88332079]
[1729698328397,0.01387247,66053.0,66046.0,0.302815]
[1729698328398,0.01223247,66053.0,66046.0,0.302815]
[1729698328562,0.01223247,66053.0,66052.0,0.17639699]
[1729698329855,0.01223247,66053.0,66052.0,0.19403669]
[1729698330113,0.01223247,66053.0,66052.0,0.17639699]
[1729698330385,0.01223247,66053.0,66042.0,0.17639699]
[1729698330386,0.151404,66049.0,66042.0,0.17639699]
[1729698330614,0.151409,66046.0,66045.0,0.22706458]
[1729698330836,0.15050381,66048.0,66042.0,0.17639699]
[1729698330837,0.454222,66047.0,66042.0,0.17639699]
[1729698331095,0.151432,66036.0,66035.0,4e-05]
[1729698331326,0.30193581,66036.0,66035.0,0.22710458]
[1729698331637,0.30193581,66036.0,66035.0,4e-05]
[1729698333996,0.30193581,66036.0,66035.0,0.25788458]
[1729698333997,0.151432,66036.0,66035.0,0.25788458]
[1729698334288,0.005,66046.0,66035.0,0.25788458]
[1729698334289,0.302828,66044.0,66035.0,0.25788458]
[1729698334517,0.22706458,66051.0,66035.0,0.25788458]
[1729698334518,0.45333681,66043.0,66035.0,0.25788458]
[1729698334729,0.30191981,66043.0,66035.0,0.40931858]
[1729698334942,0.15050381,66043.0,66035.0,4e-05]
[1729698335151,0.302837,66042.0,66035.0,4e-05]
[1729698335383,0.151432,66036.0,66035.0,4e-05]
[1729698335603,0.30193581,66036.0,66035.0,4e-05]
[1729698337075,0.30357981,66036.0,66035.0,4e-05]
[1729698340505,0.31750564,66036.0,66035.0,4e-05]
[1729698340977,0.31750564,66036.0,66035.0,8e-05]
[1729698341474,0.30357981,66036.0,66035.0,8e-05]
[1729698341733,0.31751373,66036.0,66035.0,8e-05]
[1729698343138,0.16608173,66036.0,66035.0,8e-05]
[1729698343347,0.01557792,66036.0,66035.0,8e-05]
[1729698343601,0.001644,66036.0,66035.0,0.37857858]
[1729698343794,0.001644,66036.0,66035.0,0.18535646]
[1729698346629,0.001644,66036.0,66035.0,0.34068464]
[1729698346845,0.001644,66036.0,66035.0,0.33765646]
[1729698347101,0.001644,66036.0,66035.0,0.49816027]
[1729698347574,0.001644,66036.0,66035.0,0.34765646]
[1729698347805,0.001644,66036.0,66035.0,0.34265646]
[1729698348281,0.001644,66036.0,66035.0,0.34765646]
[1729698349010,0.001644,66036.0,66035.0,0.34847846]
[1729698349256,0.001644,66036.0,66035.0,0.34347846]
[1729698350907,0.01562645,66036.0,66035.0,0.34347846]
[1729698351135,0.001644,66036.0,66035.0,0.34347846]
[1729698353100,0.001644,66036.0,66035.0,0.153202]
[1729698353321,0.31756592,66036.0,66035.0,0.000902]
[1729698353597,0.151444,66031.0,66026.0,0.22706458]
[1729698353841,0.16613392,66036.0,66026.0,0.22706458]
[1729698353842,0.151439,66034.0,66026.0,0.22706458]
[1729698354102,0.151439,66034.0,66019.0,0.38024]
[1729698354103,0.15050381,66030.0,66016.0,0.005]
[1729698354318,0.151457,66025.0,66024.0,0.22706458]
[1729698354542,0.151457,66025.0,66017.0,0.22706458]
[1729698354543,0.01398611,66025.0,66017.0,0.22706458]
[1729698354797,0.01398611,66024.0,66017.0,0.22706458]
[1729698355041,0.01398611,66023.0,66017.0,0.37853958]
[1729698355291,0.302901,66028.0,66017.0,0.37853958]
[1729698355292,0.01398611,66022.0,66020.0,0.17634762]
[1729698355533,0.01398611,66022.0,66020.0,0.32781462]
[1729698355781,0.302883,66033.0,66021.0,0.302933]
[1729698356030,0.001644,66036.0,66026.0,0.17634762]
[1729698356242,0.001644,66036.0,66027.0,0.302906]
[1729698356243,0.15050381,66035.0,66027.0,0.302906]
[1729698356465,0.15050381,66035.0,66030.0,0.151445]
[1729698356678,0.15050381,66035.0,66030.0,0.151446]
[1729698356951,0.001644,66036.0,66034.0,0.17634762]
[1729698357173,0.001644,66036.0,66035.0,0.151434]
[1729698358520,0.001644,66036.0,66028.0,0.302899]
[1729698358726,0.00061516,66036.0,66027.0,0.22706458]
[1729698358933,0.00061516,66036.0,66028.0,0.151448]
[1729698359141,0.15204716,66036.0,66027.0,0.151452]
[1729698359363,0.00061516,66036.0,66027.0,0.32779962]
[1729698359574,0.00061516,66036.0,66027.0,0.17634762]
[1729698359793,0.00061516,66036.0,66028.0,0.15145]
[1729698359993,0.00061516,66036.0,66035.0,0.32778162]
[1729698360405,0.00061516,66036.0,66033.0,0.40918574]
[1729698360641,0.00061516,66036.0,66033.0,0.25774874]
[1729698360843,0.00061516,66036.0,66034.0,0.151434]
[1729698361466,0.00061516,66036.0,66035.0,0.151434]
[1729698361689,0.00061516,66036.0,66035.0,0.30316239]
[1729698361885,0.00061516,66036.0,66035.0,0.300134]
[1729698362093,0.00061516,66036.0,66035.0,0.379834]
[1729698362735,0.00061516,66036.0,66035.0,0.53533781]
[1729698362939,0.00061516,66036.0,66035.0,0.68584162]
[1729698363367,0.00061516,66036.0,66035.0,0.69584162]
[1729698363773,0.00061516,66036.0,66035.0,0.71884162]
[1729698364025,0.00061516,66036.0,66035.0,0.71084162]
[1729698364237,0.00061516,66036.0,66035.0,0.72088162]
[1729698364704,0.00061516,66036.0,66035.0,0.82088162]
[1729698365350,0.001644,66053.0,66052.0,0.40914374]
[1729698365351,0.22870858,66053.0,66052.0,0.40914374]
[1729698365828,0.001644,66053.0,66052.0,0.40914374]
[1729698368914,0.001644,66053.0,66052.0,0.25774874]
[1729698369136,0.001644,66053.0,66049.0,0.151402]
[1729698369349,0.001644,66053.0,66049.0,0.25774874]
[1729698369558,0.001644,66053.0,66050.0,0.26094163]